bitfinex-derivatives/quotes_ETHF0:USTF0_20250320
["timestamp","ask_amount","ask_price","bid_price","bid_amount"]
[1742430777031,0.78182,2046.1,2046.0,0.78181]
[1742430777338,0.78182,2046.1,2046.0,2.19441]
[1742430777524,0.7956,2046.3,2046.0,1.4126]
[1742430777730,2.11437,2046.2,2046.1,0.7818]
[1742430777931,1.3326,2046.2,2046.1,0.7818]
[1742430779027,2.11436,2046.2,2046.1,0.7818]
[1742430779229,1.3326,2046.2,2046.1,0.7818]
[1742430779838,2.11436,2046.2,2046.1,0.7818]
[1742430781446,0.7818,2046.1,2046.0,2.19441]
[1742430781642,2.1143,2046.1,2046.0,1.4126]
[1742430781842,1.3325,2046.1,2046.0,0.78184]
[1742430782230,0.78184,2046.0,2045.9,3.99698281]
[1742430782433,0.78184,2046.0,2045.9,5.39828281]
[1742430782635,1.57274,2046.0,2045.9,5.39828281]
[1742430783436,1.57274,2046.0,2045.9,0.00733281]
[1742430783842,2.86694,2046.0,2045.9,0.00733281]
[1742430785337,0.78199,2045.6,2045.5,40.8]
[1742430785532,1.95482,2045.8,2045.3,3.2078]
[1742430785533,6.6268,2045.7,2045.4,1.3975]
[1742430785739,0.78207,2045.4,2045.3,3.9899]
[1742430785941,0.7477,2045.5,2045.3,45.4053]
[1742430786137,1.52973,2045.5,2045.4,1.3975]
[1742430788144,0.78207,2045.4,2045.3,44.0078]
[1742430788340,0.78214,2045.2,2045.1,0.78216]
[1742430788536,0.78218,2045.1,2045.0,5.3705]
[1742430788848,0.78218,2045.1,2045.0,46.1705]
[1742430789241,5.37419,2045.4,2045.0,45.3883]
[1742430789242,3.419,2045.4,2045.0,45.3883]
[1742430789442,0.78218,2045.1,2045.0,46.17049]
[1742430789945,3.419,2045.4,2045.2,0.78213]
[1742430789946,0.78212,2045.3,2045.2,0.78213]
[1742430790244,0.78211,2045.3,2045.2,0.78212]
[1742430790844,0.78211,2045.3,2045.0,45.3883]
[1742430790845,3.98503281,2045.7,2045.4,0.78207]
[1742430791045,3.21513281,2045.7,2045.6,0.78199]
[1742430791351,0.00733281,2045.7,2045.6,0.78199]
[1742430791744,0.78928281,2045.7,2045.6,41.58199]
[1742430791943,0.00733281,2045.7,2045.6,41.58199]
[1742430792143,0.78928281,2045.7,2045.6,40.8]
[1742430792435,1.59128281,2045.7,2045.6,40.8]
[1742430793149,1.59128281,2045.7,2045.6,41.58199]
[1742430793638,1.59128281,2045.7,2045.6,40.8]
[1742430794051,1.59128281,2045.7,2045.6,41.58199]
[1742430794356,0.80933281,2045.7,2045.6,41.58199]
[1742430794649,0.00733281,2045.7,2045.6,41.58199]
[1742430796051,2.81e-06,2045.7,2045.6,41.58199]
[1742430796253,2.81e-06,2045.7,2045.6,44.08199]
[1742430797057,0.78171,2046.4,2046.3,0.78172]
[1742430797253,1.6137,2046.5,2046.4,0.78168]
[1742430797451,3.2078,2046.7,2046.6,0.78161]
[1742430797652,6.09401693,2047.0,2046.8,0.78153]
[1742430797653,1.6012,2046.9,2046.8,0.78153]
[1742430797848,2.38271,2046.9,2046.8,0.78153]
[1742430798048,0.78154,2046.8,2046.7,0.78157]
[1742430798251,0.78153,2046.8,2046.7,40.8]
[1742430798755,0.78157,2046.7,2046.6,0.78892281]
[1742430799056,0.78157,2046.7,2046.6,0.00733281]
[1742430799255,0.78157,2046.7,2046.6,40.80733281]
[1742430799650,0.78157,2046.7,2046.6,41.58891281]
[1742430800053,0.78156,2046.8,2046.7,0.78156]
[1742430800351,4.809,2046.9,2046.7,1.2878]
[1742430800552,0.00733281,2047.1,2046.7,1.2878]
[1742430800752,0.78146,2047.0,2046.9,0.78147]
[1742430801450,0.78149,2046.9,2046.8,0.7815]
[1742430801653,0.78153,2046.8,2046.7,2.06936]
[1742430802450,0.78153,2046.8,2046.7,1.2878]
[1742430802751,0.78157,2046.7,2046.6,0.00733281]
[1742430803348,0.78157,2046.7,2046.2,0.78176]
[1742430803349,0.78172,2046.4,2046.2,0.78176]
[1742430803550,0.78172,2046.4,2046.3,1.2812]
[1742430803752,0.7818,2046.1,2046.0,0.78182]
[1742430803946,0.7818,2046.1,2046.0,2.06302]
[1742430804955,0.7818,2046.1,2046.0,1.2812]
[1742430805358,7.4455,2046.3,2046.0,1.2812]
[1742430805954,0.78176,2046.2,2046.1,0.78176]
[1742430806662,8.22725,2046.3,2046.2,0.78176]
[1742430806965,0.7818,2046.1,2046.0,1.2812]
[1742430807358,0.78191,2045.8,2045.7,3.98972]
[1742430807665,0.7819,2045.9,2045.8,0.78189]
[1742430807860,0.7819,2045.9,2045.8,2.13489]
[1742430808554,0.76113281,2046.0,2045.9,0.78187]
[1742430808754,0.00733281,2046.0,2045.9,2.13487]
[1742430809559,0.78917281,2046.0,2045.9,2.13487]
[1742430810953,0.00733281,2046.0,2045.9,2.13487]
[1742430811153,0.78917281,2046.0,2045.9,2.13487]
[1742430811768,0.78917281,2046.0,2045.9,1.353]
[1742430812265,0.78917281,2046.0,2045.9,2.13487]
[1742430812466,0.00733281,2046.0,2045.9,2.13487]
[1742430812763,0.78917281,2046.0,2045.9,2.13487]
[1742430813158,0.00733281,2046.0,2045.9,2.13487]
[1742430813759,0.78917281,2046.0,2045.9,2.13487]
[1742430813967,0.00733281,2046.0,2045.9,2.13487]
[1742430814161,0.78917281,2046.0,2045.9,2.13487]
[1742430815668,0.78917281,2046.0,2045.9,1.353]
[1742430815967,0.78917281,2046.0,2045.7,3.98973]
[1742430815968,0.78191,2045.8,2045.7,3.98973]
[1742430817069,1.57731,2045.9,2045.8,0.78191]
[1742430817468,0.78191,2045.8,2045.7,5.35571]
[1742430817671,0.78191,2045.8,2045.7,4.5738]
[1742430818171,1.53201,2045.8,2045.7,4.5738]
[1742430818362,0.78199,2045.6,2045.5,0.782]
[1742430818563,0.78199,2045.6,2045.5,2.148]
[1742430820266,0.78203,2045.5,2045.4,3.2078]
[1742430820467,0.78218,2045.2,2045.1,0.78216]
[1742430820667,0.78212,2045.3,2045.2,2.05961]
[1742430821570,0.78212,2045.3,2045.2,1.2775]
[1742430822380,0.78218,2045.1,2045.0,3.98999]
[1742430822677,0.78218,2045.1,2045.0,5.26749]
[1742430823274,1.2775,2045.2,2045.1,0.78218]
[1742430823576,2.05964,2045.2,2045.1,0.78218]
[1742430825077,0.78218,2045.1,2045.0,5.26749]
[1742430825281,1.2775,2045.2,2045.1,0.78218]
[1742430826191,1.55832,2045.3,2045.2,0.78214]
[1742430826392,4.20009,2045.4,2045.3,0.7821]
[1742430826593,1.3433,2045.4,2045.3,0.7821]
[1742430827094,4.96384,2045.5,2045.4,0.78207]
[1742430827290,6.30714,2045.5,2045.4,0.78207]
[1742430827685,6.30714,2045.5,2045.4,42.90557]
[1742430829180,5.5251,2045.5,2045.4,42.90557]
[1742430829385,1.55556,2045.7,2045.4,45.3313]
[1742430829589,2.18186,2045.7,2045.6,0.78199]
[1742430830691,1.3999,2045.7,2045.6,0.78199]
[1742430831288,2.18185,2045.7,2045.6,0.78199]
[1742430831499,0.78201,2045.6,2045.5,0.782]
[1742430831687,2.18191,2045.6,2045.5,2.1228]
[1742430832094,1.3999,2045.6,2045.5,2.1228]
[1742430832295,2.18189,2045.6,2045.5,2.1228]
[1742430833199,1.3999,2045.6,2045.5,2.1228]
[1742430833697,2.18189,2045.6,2045.5,2.1228]
[1742430835689,1.3999,2045.6,2045.5,2.1228]
[1742430836399,4.226,2045.8,2045.7,0.78195]
[1742430836696,3.42433281,2046.0,2045.9,0.78187]
[1742430836897,0.00733281,2046.0,2045.9,0.78187]
[1742430837097,0.00733281,2046.0,2045.9,2.15787]
[1742430838890,0.7552,2046.5,2045.9,1.376]
[1742430839095,2.14433,2046.6,2046.5,0.78165]
[1742430839296,1.3627,2046.6,2046.5,0.78165]
[1742430839502,4.1908,2046.8,2046.7,0.78157]
[1742430839697,1.3627,2046.8,2046.7,0.78157]
[1742430840001,0.78148,2047.0,2046.7,0.78157]
[1742430840002,3.417,2047.0,2046.9,0.78149]
[1742430840199,0.00733281,2047.0,2046.9,0.78149]
[1742430840593,0.00733281,2047.0,2046.9,2.16329]
[1742430842005,0.779,2047.5,2047.4,0.7813]
[1742430842208,1.3033,2047.5,2047.4,0.7813]
[1742430842396,2.08456,2047.5,2047.4,0.7813]
[1742430842997,5.92461,2047.8,2047.4,0.7813]
[1742430842998,3.9717,2047.8,2047.7,0.78119]
[1742430843298,3.9717,2047.8,2047.6,0.7812]
[1742430843299,0.7812,2047.7,2047.6,0.7812]
[1742430843697,1.54508,2047.8,2047.7,0.78119]
[1742430843904,4.72763281,2048.0,2047.5,3.35377281]
[1742430844202,4.72763281,2048.0,2047.9,0.78111]
[1742430844399,0.00733281,2048.0,2047.9,0.78111]
[1742430844596,0.78840281,2048.0,2047.9,0.78111]
[1742430844793,0.78840281,2048.0,2047.9,1.3402]
[1742430845101,2.17650281,2048.0,2047.9,2.12131]
[1742430845700,2.17650281,2048.0,2047.9,1.3402]
[1742430846507,2.17650281,2048.0,2047.9,2.12131]
[1742430847208,2.17650281,2048.0,2047.9,1.3402]
[1742430847600,1.39543281,2048.0,2047.9,1.3402]
[1742430847803,1.39543281,2048.0,2047.9,2.12131]
[1742430848002,0.00733281,2048.0,2047.9,2.12131]
[1742430848201,5.15988,2048.7,2048.0,1.95269]
[1742430848202,1.3984,2048.6,2048.0,1.95269]
[1742430848402,2.17926,2048.6,2048.4,0.7809]
[1742430848702,2.17926,2048.6,2048.5,1.4022]
[1742430849205,1.53553,2048.7,2048.5,2.18306]
[1742430849509,0.78084,2048.6,2048.5,1.4022]
[1742430849709,2.17924,2048.6,2048.5,1.4022]
[1742430849907,1.3984,2048.6,2048.5,2.18308]
[1742430850105,1.53554,2048.7,2048.5,42.98308]
[1742430850311,2.1531,2048.7,2048.5,42.98308]
[1742430850497,0.78084,2048.6,2048.5,42.2022]
[1742430850906,2.93393,2048.7,2048.5,42.98308]
[1742430851107,0.78084,2048.6,2048.5,42.2022]
[1742430851308,2.06724,2048.6,2048.5,42.2022]
[1742430852208,2.06724,2048.6,2048.5,1.4022]
[1742430852804,2.06724,2048.6,2048.5,2.18308]
[1742430853006,2.06724,2048.6,2048.5,1.4022]
[1742430854204,2.06724,2048.6,2048.5,2.18308]
[1742430854403,0.00733281,2048.8,2048.6,0.78082]
[1742430854717,0.78810281,2048.8,2048.7,1.4062]
[1742430855508,0.00733281,2048.8,2048.7,2.18701]
[1742430856309,1.31233281,2048.8,2048.7,2.18701]
[1742430856612,1.31233281,2048.8,2048.1,40.8]
[1742430856613,0.00733281,2048.8,2048.1,40.8]
[1742430856807,3.2078,2048.6,2048.2,1.3202]
[1742430857013,2.07651,2048.5,2048.4,0.78092]
[1742430857207,2.07651,2048.5,2048.2,1.3202]
[1742430857208,1.2956,2048.5,2048.2,1.3202]
[1742430857404,3.2078,2048.3,2048.0,0.78105]
[1742430857612,2.07661,2048.2,2048.1,0.78103]
[1742430857818,2.0718,2048.2,2048.0,1.3202]
[1742430858116,2.85282,2048.2,2048.0,1.3202]
[1742430858317,0.78103,2048.1,2048.0,2.10125]
[1742430858519,2.07663,2048.1,2048.0,1.3202]
[1742430858713,0.78107,2048.0,2047.9,44.21933281]
[1742430858919,1.2956,2048.0,2047.9,45.00044281]
[1742430860223,4.5034,2048.0,2047.1,3.2078]
[1742430860417,1.2956,2048.0,2047.5,1.3149]
[1742430860715,0.78123,2047.6,2047.5,1.3149]
[1742430861222,0.78122,2047.7,2047.6,0.78123]
[1742430861719,0.78123,2047.6,2047.5,42.89616]
[1742430861918,1.4068,2047.6,2047.5,42.89616]
[1742430862116,0.78850281,2047.8,2047.7,0.78119]
[1742430863420,0.78850281,2047.8,2047.6,0.7812]
[1742430863421,0.7812,2047.7,2047.6,0.7812]
[1742430863722,0.78123,2047.6,2047.5,42.1149]
[1742430863923,2.06073,2047.6,2047.5,42.89616]
[1742430864519,1.2795,2047.6,2047.5,42.89616]
[1742430864721,0.00733281,2047.8,2047.7,0.78119]
[1742430865120,0.00733281,2047.8,2047.5,46.30814]
[1742430865121,0.78123,2047.6,2047.5,46.30814]
[1742430865319,3.98903,2047.6,2047.5,40.8]
[1742430865519,0.7813,2047.4,2047.3,0.00733281]
[1742430865922,0.7813,2047.4,2047.3,40.80733281]
[1742430866225,1.5841,2047.4,2047.3,40.80733281]
[1742430866427,1.5841,2047.4,2047.3,0.00733281]
[1742430867417,2.9291,2047.4,2047.3,0.00733281]
[1742430867823,0.78148,2047.0,2046.9,0.78148]
[1742430868425,0.78148,2047.0,2046.9,41.58148]
[1742430868629,3.2078,2047.1,2047.0,0.78145]
[1742430868821,5.50589,2047.2,2047.1,0.78142]
[1742430869126,1.3125,2047.2,2047.1,0.78142]
[1742430870224,3.2078,2047.4,2047.3,0.78134]
[1742430870429,4.5203,2047.7,2047.6,0.78123]
[1742430870731,5.30149,2047.7,2047.5,0.78124]
[1742430871026,0.78126,2047.5,2047.4,1.2957]
[1742430871729,0.78126,2047.6,2047.5,0.78126]
[1742430872025,1.2756,2047.6,2047.5,0.78126]
[1742430872933,2.05683,2047.6,2047.5,0.78126]
[1742430873930,0.78126,2047.5,2047.4,1.2957]
[1742430874231,1.2756,2047.5,2047.4,2.077]
[1742430874726,3.2078,2047.7,2047.6,0.78123]
[1742430875832,3.98899,2047.7,2047.6,0.78123]
[1742430876130,5.29899,2047.7,2047.5,0.78123]
[1742430876429,5.299,2047.7,2047.6,0.78123]
[1742430876631,4.5178,2047.7,2047.6,0.78123]
[1742430877123,3.2078,2047.7,2047.6,0.78123]
[1742430877329,0.7812,2047.7,2047.6,0.78119]
[1742430877525,2.0912,2047.7,2047.6,0.78119]
[1742430877931,2.09122,2047.7,2047.6,0.78123]
[1742430878328,0.78128,2047.5,2047.4,0.78127]
[1742430878530,0.78125,2047.6,2047.5,0.78125]
[1742430878726,2.13945,2047.6,2047.5,0.78125]
[1742430878927,0.78129,2047.5,2047.4,0.78128]
[1742430879234,2.13947,2047.5,2047.4,0.7813]
[1742430879633,0.7813,2047.4,2047.3,4.19331]
[1742430879834,1.3582,2047.4,2047.3,4.19331]
[1742430880034,2.13943,2047.6,2047.5,0.78123]
[1742430880437,1.3582,2047.6,2047.5,0.78123]
[1742430880636,3.2078,2047.7,2047.6,0.78123]
[1742430880934,0.00733281,2047.8,2047.7,0.78119]
[1742430881730,1.5956,2048.1,2048.0,0.78107]
[1742430881731,0.8036,2048.1,2048.0,0.78107]
[1742430881929,3.98877,2048.3,2047.9,5.36378]
[1742430882233,4.5803,2048.3,2048.2,0.781]
[1742430882536,0.781,2048.2,2047.9,3.411]
[1742430882732,1.3725,2048.1,2048.0,0.78107]
[1742430883333,2.15353,2048.1,2048.0,0.78107]
[1742430883531,1.3725,2048.1,2048.0,0.78107]
[1742430884123,3.21513281,2048.3,2048.2,0.781]
[1742430884124,3.99609281,2048.3,2048.2,0.781]
[1742430884328,3.21513281,2048.3,2048.2,0.781]
[1742430884529,3.99609281,2048.3,2048.2,0.781]
[1742430884724,3.21513281,2048.3,2048.1,0.781]
[1742430884931,0.781,2048.2,2048.1,0.781]
[1742430885131,3.99612281,2048.3,2048.2,0.781]
[1742430885329,3.99612281,2048.3,2048.1,40.8]
[1742430885526,2.1452,2048.2,2048.1,41.58101]
[1742430886534,3.99611281,2048.3,2048.2,0.781]
[1742430886735,0.781,2048.2,2048.1,40.8]
[1742430886934,1.3355,2048.2,2047.9,3.411]
[1742430887123,3.2078,2048.0,2047.8,0.00733281]
[1742430887628,2.92301,2047.9,2047.8,0.78848281]
[1742430888136,2.1419,2047.9,2047.8,0.78848281]
[1742430888438,2.92301,2047.9,2047.8,0.78848281]
[1742430890036,2.1419,2047.9,2047.8,0.78848281]
[1742430890236,2.1419,2047.9,2047.8,0.00733281]
[1742430890535,2.92301,2047.9,2047.8,0.00733281]
[1742430890730,3.72001,2047.9,2047.8,0.00733281]
[1742430890937,0.78126,2047.5,2047.4,3.411]
[1742430891137,3.2078,2047.6,2047.2,0.78136]
[1742430891331,1.3609,2047.5,2047.1,4.1665]
[1742430891525,0.78132,2047.4,2047.2,41.58136]
[1742430891725,2.14224,2047.3,2047.2,40.8]
[1742430892539,2.14224,2047.3,2047.2,42.1154]
[1742430893923,0.78143,2047.1,2046.9,1.56488]
[1742430894124,0.78143,2047.1,2047.0,1.3999]
[1742430894336,3.98923,2047.1,2047.0,1.3999]
[1742430894832,3.98923,2047.1,2046.5,3.2078]
[1742430894833,3.2078,2047.1,2046.5,3.2078]
[1742430895132,0.78155,2046.8,2046.7,1.3999]
[1742430895346,3.98935,2046.8,2046.7,1.3999]
[1742430895639,0.78157,2046.7,2046.6,40.8]
[1742430896038,3.2078,2046.8,2046.5,1.3999]
[1742430896231,0.78161,2046.6,2046.5,1.3999]
[1742430896431,0.78165,2046.5,2046.3,40.8]
[1742430896645,0.78168,2046.4,2046.3,40.8]
[1742430897431,0.78172,2046.3,2046.2,1.3079]
[1742430897833,0.7817,2046.4,2046.2,42.88965]
[1742430898340,3.98947,2046.5,2046.2,2.08965]
[1742430899141,3.98947,2046.5,2046.2,2.08964]
[1742430899341,0.78169,2046.4,2046.2,2.08964]
[1742430899833,0.78169,2046.4,2046.2,1.3079]
[1742430900137,0.78169,2046.4,2046.2,2.08966]
[1742430900636,3.2078,2046.5,2046.2,1.3079]
[1742430900844,0.78176,2046.2,2046.1,40.8]
[1742430901040,3.98956,2046.2,2046.1,40.8]
[1742430901441,3.2078,2046.2,2046.1,41.5818]
[1742430902139,0.78169,2046.4,2046.1,40.8]
[1742430902335,0.78169,2046.4,2046.2,2.07745]
[1742430902537,0.78171,2046.4,2046.2,1.2957]
[1742430902937,0.78171,2046.4,2046.2,2.07744]
[1742430903338,0.78171,2046.4,2046.2,2.07745]
[1742430903540,0.78171,2046.4,2046.2,1.2957]
[1742430903731,0.78171,2046.4,2046.2,2.07746]
[1742430903936,3.2078,2046.5,2046.4,0.78168]
[1742430904146,3.2078,2046.5,2046.2,1.2957]
[1742430904147,3.2078,2046.5,2046.3,0.7817]
[1742430904344,3.98945,2046.5,2046.4,1.2957]
[1742430904531,3.98945,2046.5,2046.2,0.7363]
[1742430904532,0.78169,2046.4,2046.2,1.51805]
[1742430904735,0.78174,2046.3,2046.1,40.8]
[1742430904936,0.78171,2046.4,2046.1,42.87748]
[1742430905136,6.6198,2046.5,2046.1,42.0957]
[1742430905342,0.78176,2046.3,2046.2,1.3076]
[1742430906245,6.6198,2046.5,2046.2,1.3076]
[1742430906433,3.98946,2046.5,2046.3,0.7817]
[1742430906636,3.2078,2046.5,2046.4,1.3076]
[1742430907042,3.98945,2046.5,2046.4,1.3076]
[1742430907244,0.78172,2046.3,2046.2,2.0439]
[1742430907845,0.78172,2046.3,2046.2,2.82566]
[1742430908041,0.78172,2046.3,2046.2,1.3076]
[1742430909035,0.78171,2046.4,2046.2,2.08936]
[1742430909237,0.78172,2046.3,2046.2,1.3076]
[1742430909633,0.78176,2046.2,2046.1,40.8]
[1742430909837,0.78176,2046.2,2046.1,42.1421]
[1742430910240,0.78176,2046.2,2046.1,1.3421]
[1742430910542,0.78176,2046.2,2046.1,2.1239]
[1742430910741,0.78176,2046.2,2046.1,42.1421]
[1742430911243,0.78176,2046.2,2046.1,1.3421]
[1742430911650,3.412,2046.4,2046.1,1.3421]
[1742430911850,4.1937,2046.4,2046.2,0.78176]
[1742430912038,4.1937,2046.4,2046.3,1.3945]
[1742430912239,5.6007,2046.4,2046.3,1.3945]
[1742430913248,3.2078,2046.5,2046.4,0.78168]
[1742430914241,3.2078,2046.5,2046.4,2.13138]
[1742430914842,0.78151,2046.9,2046.5,1.95412]
[1742430915041,0.78154,2046.8,2046.7,0.78155]
[1742430915439,0.78151,2046.9,2046.8,0.78153]
[1742430915641,3.2078,2047.1,2047.0,0.78145]
[1742430915939,3.98922,2047.1,2047.0,0.78145]
[1742430917039,3.2078,2047.1,2047.0,0.78145]
[1742430917849,3.2078,2047.1,2046.9,2.13117]
[1742430918051,3.2078,2047.1,2047.0,0.78145]
[1742430918351,3.2078,2047.1,2047.0,2.11165]
[1742430919957,3.98922,2047.1,2047.0,2.11165]
[1742430920249,5.29112,2047.1,2047.0,2.11165]
[1742430922253,5.29112,2047.1,2047.0,1.3302]
[1742430922945,4.5097,2047.1,2047.0,2.11165]
[1742430923156,3.2078,2047.1,2047.0,2.11165]
[1742430923543,3.98922,2047.1,2047.0,2.11165]
[1742430924543,5.36282,2047.1,2047.0,2.11165]
[1742430925753,4.5814,2047.1,2047.0,2.11165]
[1742430926251,5.36282,2047.1,2047.0,2.11165]
[1742430927546,3.2078,2047.1,2047.0,2.11165]
[1742430927942,0.00733281,2047.2,2047.0,1.3302]
[1742430928148,0.00733281,2047.2,2047.0,2.11162]
[1742430928350,6.6178,2047.1,2046.2,0.78173]
[1742430928556,0.78168,2046.4,2046.3,2.15031]
[1742430928955,0.78182,2046.1,2045.9,4.9436]
[1742430929154,3.98962,2046.1,2046.0,1.3686]
[1742430929354,0.78189,2045.9,2045.8,0.78189]
[1742430929557,1.3825,2046.0,2045.9,0.78187]
[1742430929753,2.16434,2046.0,2045.9,0.78187]
[1742430929954,1.3825,2046.0,2045.9,0.78187]
[1742430930354,0.78915281,2046.1,2046.0,0.78184]
[1742430931058,0.78185,2046.0,2045.9,0.78185]
[1742430931559,0.00733281,2046.1,2046.0,0.78184]
[1742430931860,1.38983281,2046.1,2046.0,0.78184]
[1742430932354,2.17163281,2046.1,2046.0,0.78184]
[1742430932558,1.38983281,2046.1,2046.0,0.78184]
[1742430932758,0.00733281,2046.1,2046.0,0.78184]
[1742430932953,0.00733281,2046.1,2046.0,3.98964]
[1742430933464,0.00733281,2046.1,2046.0,6.93394]
[1742430933860,0.00733281,2046.1,2046.0,3.72614]
[1742430934172,0.78913281,2046.1,2046.0,1.3648]
[1742430934564,0.00733281,2046.1,2045.9,0.78186]
[1742430934762,0.78187,2045.9,2045.8,2.14668]
[1742430935162,0.78191,2045.8,2045.7,40.8]
[1742430935363,0.78195,2045.7,2045.6,2.14677]
[1742430935564,2.06475,2045.7,2045.6,2.14679]
[1742430935766,2.06475,2045.7,2045.6,1.3648]
[1742430936064,0.78211,2045.3,2045.1,6.6178]
[1742430936253,0.78211,2045.3,2045.2,1.3879]
[1742430936657,0.78211,2045.3,2045.2,2.17004]
[1742430937063,0.78211,2045.3,2045.2,1.3879]
[1742430937367,0.78214,2045.2,2045.1,0.78217]
[1742430937562,5.8976,2045.5,2045.1,0.78217]
[1742430937563,5.8976,2045.5,2045.1,2.17007]
[1742430937866,0.78214,2045.2,2045.1,1.3879]
[1742430938569,0.78211,2045.3,2045.1,2.17005]
[1742430938766,0.7821,2045.3,2045.2,1.3591]
[1742430938968,0.78209,2045.4,2045.2,2.14124]
[1742430939167,0.7821,2045.3,2045.2,1.3591]
[1742430939369,3.41,2045.4,2045.0,40.8]
[1742430939564,0.78213,2045.3,2045.1,2.14126]
[1742430939971,0.78214,2045.2,2045.1,1.3591]
[1742430940172,1.52273,2045.3,2045.2,0.78214]
[1742430940468,1.52273,2045.3,2045.1,2.14125]
[1742430940680,0.78214,2045.2,2045.1,2.14125]
[1742430942171,0.78218,2045.1,2045.0,0.7822]
[1742430942474,1.56598,2045.1,2045.0,0.78222]
[1742430942665,0.7838,2045.1,2045.0,0.78222]
[1742430943066,0.7838,2045.1,2045.0,2.06812]
[1742430944475,3.2078,2045.2,2045.1,0.78218]
[1742430944872,3.2078,2045.2,2044.9,40.8]
[1742430945070,0.78225,2045.0,2044.8,2.08448]
[1742430945572,3.2078,2044.9,2044.7,0.78232]
[1742430945778,0.7824,2044.6,2044.4,0.78242]
[1742430945974,0.7283,2044.5,2044.4,0.78242]
[1742430946175,0.7283,2044.5,2044.4,41.58242]
[1742430947178,1.51071,2044.5,2044.4,40.8]
[1742430947781,4.1393,2044.5,2044.1,7.2622]
[1742430947977,3.2078,2044.3,2044.2,0.78253]
[1742430948174,3.9903,2044.3,2044.1,42.88475]
[1742430948482,3.2078,2044.3,2044.2,1.3702]
[1742430948681,3.2078,2044.3,2044.2,2.15273]
[1742430949568,3.99029,2044.3,2044.2,2.15273]
[1742430949775,3.99029,2044.3,2044.2,1.3702]
[1742430950372,3.2078,2044.3,2044.2,2.15273]
[1742430950875,4.1393,2044.5,2044.4,0.78245]
[1742430951278,4.1393,2044.5,2044.2,2.15271]
[1742430951480,0.78249,2044.3,2044.2,2.15271]
[1742430952085,0.78249,2044.3,2044.2,1.3702]
[1742430952474,2.18958,2044.4,2044.3,0.78249]
[1742430953180,2.18958,2044.4,2044.2,2.1527]
[1742430953380,0.78249,2044.3,2044.2,1.3702]
[1742430953678,0.78253,2044.2,2044.1,3.99034]
[1742430953879,1.4071,2044.3,2044.1,3.99034]
[1742430953880,2.98061,2044.3,2044.1,3.99034]
[1742430954080,2.98061,2044.3,2044.2,0.78253]
[1742430954273,2.98061,2044.3,2044.2,1.403]
[1742430954469,2.98061,2044.3,2044.1,3.99034]
[1742430954470,0.78253,2044.2,2044.1,3.99034]
[1742430954676,2.15573,2044.2,2044.1,5.39334]
[1742430954981,2.15573,2044.2,2044.1,5.39336]
[1742430955283,1.3732,2044.2,2044.1,5.39336]
[1742430955480,2.15573,2044.2,2044.1,4.6108]
[1742430955783,1.3732,2044.2,2044.1,5.39336]
[1742430957383,2.15573,2044.2,2044.1,1.403]
[1742430957883,0.78256,2044.1,2044.0,40.8]
[1742430958088,0.7826,2044.0,2043.9,2.12543]
[1742430958378,3.2078,2044.0,2043.5,9.1678]
[1742430958576,4.7341,2043.9,2043.5,3.2078]
[1742430958777,4.7341,2043.9,2043.7,0.78272]
[1742430958974,5.51674,2043.9,2043.8,1.3428]
[1742430960079,5.51674,2043.9,2043.8,2.12548]
[1742430960276,4.7341,2043.9,2043.8,2.12548]
[1742430960481,3.21513281,2044.0,2043.8,1.3428]
[1742430960782,3.99773281,2044.0,2043.9,1.2792]
[1742430960984,5.36193281,2044.0,2043.9,1.2792]
[1742430961573,0.00733281,2044.0,2043.9,2.06184]
[1742430961778,3.2078,2044.3,2043.9,1.2792]
[1742430961980,0.7826,2044.0,2043.9,1.2792]
[1742430962886,3.9904,2044.0,2043.9,1.2792]
[1742430963082,3.9904,2044.0,2043.7,0.00733281]
[1742430963083,0.78268,2043.8,2043.7,0.00733281]
[1742430963286,5.16436,2044.0,2042.8,5.16546]
[1742430963287,10.7668,2043.9,2042.8,5.16546]
[1742430963492,0.78283,2043.4,2043.3,1.2999]
[1742430963884,0.78283,2043.4,2043.0,40.8]
[1742430963885,1.3948,2043.4,2043.0,40.8]
[1742430964082,0.78291,2043.2,2043.1,1.2999]
[1742430964283,6.6198,2043.2,2042.5,5.17834533]
[1742430964489,6.6198,2043.2,2043.0,1.2999]
[1742430964490,5.38555,2043.1,2043.0,1.2999]
[1742430964788,5.39288281,2043.1,2043.0,1.2999]
[1742430965281,4.60993281,2043.1,2042.8,40.8]
[1742430965583,0.00733281,2043.1,2043.0,0.78298]
[1742430966184,0.00733281,2043.1,2043.0,2.83358]
[1742430967287,0.00733281,2043.1,2043.0,43.63358]
[1742430970889,0.79028281,2043.1,2043.0,43.63358]
[1742430971193,0.79028281,2043.1,2043.0,42.89368]
[1742430971585,0.00733281,2043.1,2043.0,42.89368]
[1742430972186,0.00733281,2043.1,2043.0,46.30668]
[1742430972591,0.79028281,2043.1,2043.0,42.1107]
[1742430972792,0.79028281,2043.1,2043.0,42.89368]
[1742430974389,2.13048281,2043.1,2043.0,42.89368]
[1742430974787,2.13048281,2043.1,2043.0,42.1107]
[1742430975396,0.78302,2042.9,2042.8,3.2078]
[1742430975600,0.78298,2043.0,2042.8,3.2078]
[1742430975799,0.78298,2043.0,2042.9,0.78302]
[1742430976190,1.34753281,2043.1,2042.8,44.0078]
[1742430976695,2.13050281,2043.1,2043.0,0.78298]
[1742430977901,1.34753281,2043.1,2043.0,0.78298]
[1742430978398,0.00733281,2043.1,2043.0,0.78298]
[1742430978898,0.00733281,2043.1,2043.0,1.54598]